{"text_format":"3","workbook":"xlsx","n_sheets":3,"sheets":["Rapport over månedsbudget","Månedlige udgifter","Yderligere data"],"not_rendered":{"charts":1,"defined_names":4,"pivot_tables":2},"read":"whole","date_system":"1900"}

{"sheet":"Rapport over månedsbudget","index":0,"n_rows":34,"n_cols":14,"rows_kept":34,"merged":[[7,1,10,1],[7,5,10,5],[7,6,10,6],[12,1,16,1],[12,5,16,5],[12,6,16,6]]}
[null,"Budgetoversigt",{"$nulls":7},"Budgetsammendrag"]
[null,"Saldo"]
[null,"Forventet saldo","(Forventet minus udgifter)",{"$nulls":3},{"$f":"D17-SUM(Budgetoplysninger[Forventede omkostninger])","v":{"v":1585,"d":"kr. 1,585"}}]
[null,"Faktisk saldo ","(Faktisk minus udgifter)",{"$nulls":3},{"$f":"D11-SUM(Budgetoplysninger[Faktiske omkostninger])","v":{"v":1740,"d":"kr. 1,740"}}]
[null,"Forskel","(Faktisk minus forventet)",{"$nulls":3},{"$f":"G4-G3","v":{"v":155,"d":"kr. 155"}}]
[]
[null,"Indtægter",{"$nulls":3},"Udgifter",{"$nulls":3},"Højreklik på pivottabellen nedenfor, og klik derefter på Opdater for at opdatere"]
[null,"FAKTISK","Indtægt 1",{"v":5800,"d":"kr. 5,800"},null,"FAKTISK",{"$f":"SUM(Budgetoplysninger[Faktiske omkostninger])","v":{"v":7860,"d":"kr. 7,860"}}]
[null,null,"Indtægt 2",{"v":2300,"d":"kr. 2,300"},{"$nulls":6},"Kategori","Forventede omkostninger ","Faktiske omkostninger ","Forskel "]
[null,null,"Yderligere indtægt",{"v":1500,"d":"kr. 1,500"},{"$nulls":6},"Bolig",{"v":2830,"d":"kr. 2,830"},{"v":2702,"d":"kr. 2,702"},{"v":128,"d":"kr. 128"}]
[null,null,"Indtægt i alt",{"$f":"SUM(D8:D10)","v":{"v":9600,"d":"kr. 9,600"}}]
[{"$nulls":10},"Børn",{"v":140,"d":"kr. 140"},{"v":140,"d":"kr. 140"},{"v":0,"d":"kr. 0"}]
[null,"FORVENTET",{"$nulls":3},"FORVENTET",{"$f":"SUM(Budgetoplysninger[Forventede omkostninger])","v":{"v":7915,"d":"kr. 7,915"}}]
[null,null,"Indtægt 1",{"v":6000,"d":"kr. 6,000"},{"$nulls":6},"Forsikring",{"v":900,"d":"kr. 900"},{"v":900,"d":"kr. 900"},{"v":0,"d":"kr. 0"}]
[null,null,"Indtægt 2",{"v":1000,"d":"kr. 1,000"}]
[null,null,"Yderligere indtægt",{"v":2500,"d":"kr. 2,500"},{"$nulls":6},"Gaver og velgørenhed",{"v":100,"d":"kr. 100"},{"v":125,"d":"kr. 125"},{"v":-25,"d":"kr. -25"}]
[null,null,"Indtægt i alt",{"$f":"SUM(D14:D16)","v":{"v":9500,"d":"kr. 9,500"}}]
[{"$nulls":10},"Kæledyr",{"v":170,"d":"kr. 170"},{"v":100,"d":"kr. 100"},{"v":70,"d":"kr. 70"}]
[]
[{"$nulls":10},"Lån",{"v":200,"d":"kr. 200"},{"v":200,"d":"kr. 200"},{"v":0,"d":"kr. 0"}]
[]
[{"$nulls":10},"Mad",{"v":1100,"d":"kr. 1,100"},{"v":1320,"d":"kr. 1,320"},{"v":-220,"d":"kr. -220"}]
[]
[{"$nulls":10},"Opsparinger eller investeringer",{"v":200,"d":"kr. 200"},{"v":200,"d":"kr. 200"},{"v":0,"d":"kr. 0"}]
[]
[{"$nulls":10},"Personlig pleje",{"v":150,"d":"kr. 150"},{"v":140,"d":"kr. 140"},{"v":10,"d":"kr. 10"}]
[]
[{"$nulls":10},"Skat",{"v":300,"d":"kr. 300"},{"v":300,"d":"kr. 300"},{"v":0,"d":"kr. 0"}]
[]
[{"$nulls":10},"Transport",{"v":1425,"d":"kr. 1,425"},{"v":1375,"d":"kr. 1,375"},{"v":50,"d":"kr. 50"}]
[]
[{"$nulls":10},"Underholdning",{"v":400,"d":"kr. 400"},{"v":358,"d":"kr. 358"},{"v":42,"d":"kr. 42"}]
[]
[{"$nulls":10},"Konačni zbir",{"v":7915,"d":"kr. 7,915"},{"v":7860,"d":"kr. 7,860"},{"v":55,"d":"kr. 55"}]

{"sheet":"Månedlige udgifter","index":1,"n_rows":62,"n_cols":7,"rows_kept":62}
[null,"Månedlige udgifter"]
[null,"Beskrivelse","Kategori","Forventede omkostninger","Faktiske omkostninger","Forskel","Oversigt over faktiske omkostninger"]
[null,"Ekstraaktiviteter i forbindelse med skole/studier","Børn",{"v":40,"d":"kr. 40"},{"v":40,"d":"kr. 40"},{"$f":"Budgetoplysninger[[#This Row],[Forventede omkostninger]]-Budgetoplysninger[[#This Row],[Faktiske omkostninger]]","v":{"v":0,"d":"kr. 0"}},{"$f":"Budgetoplysninger[[#This Row],[Faktiske omkostninger]]","v":{"v":40,"d":"kr. 40"}}]
[null,"Medicin","Børn",null,null,{"$f":"Budgetoplysninger[[#This Row],[Forventede omkostninger]]-Budgetoplysninger[[#This Row],[Faktiske omkostninger]]","v":{"v":0,"d":"kr. 0"}},{"$f":"Budgetoplysninger[[#This Row],[Faktiske omkostninger]]","v":{"v":0,"d":"kr. 0"}}]
[null,"Skoleartikler","Børn",null,null,{"$f":"Budgetoplysninger[[#This Row],[Forventede omkostninger]]-Budgetoplysninger[[#This Row],[Faktiske omkostninger]]","v":{"v":0,"d":"kr. 0"}},{"$f":"Budgetoplysninger[[#This Row],[Faktiske omkostninger]]","v":{"v":0,"d":"kr. 0"}}]
[null,"Skolebetaling","Børn",{"v":100,"d":"kr. 100"},{"v":100,"d":"kr. 100"},{"$f":"Budgetoplysninger[[#This Row],[Forventede omkostninger]]-Budgetoplysninger[[#This Row],[Faktiske omkostninger]]","v":{"v":0,"d":"kr. 0"}},{"$f":"Budgetoplysninger[[#This Row],[Faktiske omkostninger]]","v":{"v":100,"d":"kr. 100"}}]
[null,"Koncerter","Underholdning",{"v":50,"d":"kr. 50"},{"v":40,"d":"kr. 40"},{"$f":"Budgetoplysninger[[#This Row],[Forventede omkostninger]]-Budgetoplysninger[[#This Row],[Faktiske omkostninger]]","v":{"v":10,"d":"kr. 10"}},{"$f":"Budgetoplysninger[[#This Row],[Faktiske omkostninger]]","v":{"v":40,"d":"kr. 40"}}]
[null,"Teater","Underholdning",{"v":200,"d":"kr. 200"},{"v":150,"d":"kr. 150"},{"$f":"Budgetoplysninger[[#This Row],[Forventede omkostninger]]-Budgetoplysninger[[#This Row],[Faktiske omkostninger]]","v":{"v":50,"d":"kr. 50"}},{"$f":"Budgetoplysninger[[#This Row],[Faktiske omkostninger]]","v":{"v":150,"d":"kr. 150"}}]
[null,"Biograf","Underholdning",{"v":50,"d":"kr. 50"},{"v":28,"d":"kr. 28"},{"$f":"Budgetoplysninger[[#This Row],[Forventede omkostninger]]-Budgetoplysninger[[#This Row],[Faktiske omkostninger]]","v":{"v":22,"d":"kr. 22"}},{"$f":"Budgetoplysninger[[#This Row],[Faktiske omkostninger]]","v":{"v":28,"d":"kr. 28"}}]
[null,"Musik (cd'er, streaming osv.)","Underholdning",{"v":50,"d":"kr. 50"},{"v":30,"d":"kr. 30"},{"$f":"Budgetoplysninger[[#This Row],[Forventede omkostninger]]-Budgetoplysninger[[#This Row],[Faktiske omkostninger]]","v":{"v":20,"d":"kr. 20"}},{"$f":"Budgetoplysninger[[#This Row],[Faktiske omkostninger]]","v":{"v":30,"d":"kr. 30"}}]
[null,"Sportsbegivenheder","Underholdning",{"v":0,"d":"kr. 0"},{"v":40,"d":"kr. 40"},{"$f":"Budgetoplysninger[[#This Row],[Forventede omkostninger]]-Budgetoplysninger[[#This Row],[Faktiske omkostninger]]","v":{"v":-40,"d":"kr. -40"}},{"$f":"Budgetoplysninger[[#This Row],[Faktiske omkostninger]]","v":{"v":40,"d":"kr. 40"}}]
[null,"Video/dvd (køb)","Underholdning",{"v":20,"d":"kr. 20"},{"v":50,"d":"kr. 50"},{"$f":"Budgetoplysninger[[#This Row],[Forventede omkostninger]]-Budgetoplysninger[[#This Row],[Faktiske omkostninger]]","v":{"v":-30,"d":"kr. -30"}},{"$f":"Budgetoplysninger[[#This Row],[Faktiske omkostninger]]","v":{"v":50,"d":"kr. 50"}}]
[null,"Video/dvd (leje)","Underholdning",{"v":30,"d":"kr. 30"},{"v":20,"d":"kr. 20"},{"$f":"Budgetoplysninger[[#This Row],[Forventede omkostninger]]-Budgetoplysninger[[#This Row],[Faktiske omkostninger]]","v":{"v":10,"d":"kr. 10"}},{"$f":"Budgetoplysninger[[#This Row],[Faktiske omkostninger]]","v":{"v":20,"d":"kr. 20"}}]
[null,"Restaurantbesøg","Mad",{"v":1000,"d":"kr. 1,000"},{"v":1200,"d":"kr. 1,200"},{"$f":"Budgetoplysninger[[#This Row],[Forventede omkostninger]]-Budgetoplysninger[[#This Row],[Faktiske omkostninger]]","v":{"v":-200,"d":"kr. -200"}},{"$f":"Budgetoplysninger[[#This Row],[Faktiske omkostninger]]","v":{"v":1200,"d":"kr. 1,200"}}]
[null,"Dagligvarer","Mad",{"v":100,"d":"kr. 100"},{"v":120,"d":"kr. 120"},{"$f":"Budgetoplysninger[[#This Row],[Forventede omkostninger]]-Budgetoplysninger[[#This Row],[Faktiske omkostninger]]","v":{"v":-20,"d":"kr. -20"}},{"$f":"Budgetoplysninger[[#This Row],[Faktiske omkostninger]]","v":{"v":120,"d":"kr. 120"}}]
[null,"Velgørenhed 1","Gaver og velgørenhed",{"v":75,"d":"kr. 75"},{"v":100,"d":"kr. 100"},{"$f":"Budgetoplysninger[[#This Row],[Forventede omkostninger]]-Budgetoplysninger[[#This Row],[Faktiske omkostninger]]","v":{"v":-25,"d":"kr. -25"}},{"$f":"Budgetoplysninger[[#This Row],[Faktiske omkostninger]]","v":{"v":100,"d":"kr. 100"}}]
[null,"Velgørenhed 2","Gaver og velgørenhed",{"v":25,"d":"kr. 25"},{"v":25,"d":"kr. 25"},{"$f":"Budgetoplysninger[[#This Row],[Forventede omkostninger]]-Budgetoplysninger[[#This Row],[Faktiske omkostninger]]","v":{"v":0,"d":"kr. 0"}},{"$f":"Budgetoplysninger[[#This Row],[Faktiske omkostninger]]","v":{"v":25,"d":"kr. 25"}}]
[null,"Gave 1","Gaver og velgørenhed",null,null,{"$f":"Budgetoplysninger[[#This Row],[Forventede omkostninger]]-Budgetoplysninger[[#This Row],[Faktiske omkostninger]]","v":{"v":0,"d":"kr. 0"}},{"$f":"Budgetoplysninger[[#This Row],[Faktiske omkostninger]]","v":{"v":0,"d":"kr. 0"}}]
[null,"Gave 2","Gaver og velgørenhed",null,null,{"$f":"Budgetoplysninger[[#This Row],[Forventede omkostninger]]-Budgetoplysninger[[#This Row],[Faktiske omkostninger]]","v":{"v":0,"d":"kr. 0"}},{"$f":"Budgetoplysninger[[#This Row],[Faktiske omkostninger]]","v":{"v":0,"d":"kr. 0"}}]
[null,"Kabel/satellit-tv","Bolig",{"v":100,"d":"kr. 100"},{"v":100,"d":"kr. 100"},{"$f":"Budgetoplysninger[[#This Row],[Forventede omkostninger]]-Budgetoplysninger[[#This Row],[Faktiske omkostninger]]","v":{"v":0,"d":"kr. 0"}},{"$f":"Budgetoplysninger[[#This Row],[Faktiske omkostninger]]","v":{"v":100,"d":"kr. 100"}}]
[null,"Elektricitet","Bolig",{"v":45,"d":"kr. 45"},{"v":50,"d":"kr. 50"},{"$f":"Budgetoplysninger[[#This Row],[Forventede omkostninger]]-Budgetoplysninger[[#This Row],[Faktiske omkostninger]]","v":{"v":-5,"d":"kr. -5"}},{"$f":"Budgetoplysninger[[#This Row],[Faktiske omkostninger]]","v":{"v":50,"d":"kr. 50"}}]
[null,"Gas","Bolig",{"v":300,"d":"kr. 300"},{"v":400,"d":"kr. 400"},{"$f":"Budgetoplysninger[[#This Row],[Forventede omkostninger]]-Budgetoplysninger[[#This Row],[Faktiske omkostninger]]","v":{"v":-100,"d":"kr. -100"}},{"$f":"Budgetoplysninger[[#This Row],[Faktiske omkostninger]]","v":{"v":400,"d":"kr. 400"}}]
[null,"Rengøringshjælp","Bolig",{"v":200,"d":"kr. 200"},null,{"$f":"Budgetoplysninger[[#This Row],[Forventede omkostninger]]-Budgetoplysninger[[#This Row],[Faktiske omkostninger]]","v":{"v":200,"d":"kr. 200"}},{"$f":"Budgetoplysninger[[#This Row],[Faktiske omkostninger]]","v":{"v":0,"d":"kr. 0"}}]
[null,"Vedligeholdelse","Bolig",{"v":200,"d":"kr. 200"},{"v":150,"d":"kr. 150"},{"$f":"Budgetoplysninger[[#This Row],[Forventede omkostninger]]-Budgetoplysninger[[#This Row],[Faktiske omkostninger]]","v":{"v":50,"d":"kr. 50"}},{"$f":"Budgetoplysninger[[#This Row],[Faktiske omkostninger]]","v":{"v":150,"d":"kr. 150"}}]
[null,"Realkreditlån eller husleje","Bolig",{"v":1700,"d":"kr. 1,700"},{"v":1700,"d":"kr. 1,700"},{"$f":"Budgetoplysninger[[#This Row],[Forventede omkostninger]]-Budgetoplysninger[[#This Row],[Faktiske omkostninger]]","v":{"v":0,"d":"kr. 0"}},{"$f":"Budgetoplysninger[[#This Row],[Faktiske omkostninger]]","v":{"v":1700,"d":"kr. 1,700"}}]
[null,"Naturgas/olie","Bolig",null,null,{"$f":"Budgetoplysninger[[#This Row],[Forventede omkostninger]]-Budgetoplysninger[[#This Row],[Faktiske omkostninger]]","v":{"v":0,"d":"kr. 0"}},{"$f":"Budgetoplysninger[[#This Row],[Faktiske omkostninger]]","v":{"v":0,"d":"kr. 0"}}]
[null,"Internetforbindelse","Bolig",{"v":100,"d":"kr. 100"},{"v":100,"d":"kr. 100"},{"$f":"Budgetoplysninger[[#This Row],[Forventede omkostninger]]-Budgetoplysninger[[#This Row],[Faktiske omkostninger]]","v":{"v":0,"d":"kr. 0"}},{"$f":"Budgetoplysninger[[#This Row],[Faktiske omkostninger]]","v":{"v":100,"d":"kr. 100"}}]
[null,"Telefon (mobil)","Bolig",{"v":60,"d":"kr. 60"},{"v":60,"d":"kr. 60"},{"$f":"Budgetoplysninger[[#This Row],[Forventede omkostninger]]-Budgetoplysninger[[#This Row],[Faktiske omkostninger]]","v":{"v":0,"d":"kr. 0"}},{"$f":"Budgetoplysninger[[#This Row],[Faktiske omkostninger]]","v":{"v":60,"d":"kr. 60"}}]
[null,"Telefon (hjemme)","Bolig",{"v":35,"d":"kr. 35"},{"v":39,"d":"kr. 39"},{"$f":"Budgetoplysninger[[#This Row],[Forventede omkostninger]]-Budgetoplysninger[[#This Row],[Faktiske omkostninger]]","v":{"v":-4,"d":"kr. -4"}},{"$f":"Budgetoplysninger[[#This Row],[Faktiske omkostninger]]","v":{"v":39,"d":"kr. 39"}}]
[null,"Forsyninger","Bolig",{"v":40,"d":"kr. 40"},{"v":55,"d":"kr. 55"},{"$f":"Budgetoplysninger[[#This Row],[Forventede omkostninger]]-Budgetoplysninger[[#This Row],[Faktiske omkostninger]]","v":{"v":-15,"d":"kr. -15"}},{"$f":"Budgetoplysninger[[#This Row],[Faktiske omkostninger]]","v":{"v":55,"d":"kr. 55"}}]
[null,"Bortskaffelse af affald og genbrug","Bolig",{"v":25,"d":"kr. 25"},{"v":22,"d":"kr. 22"},{"$f":"Budgetoplysninger[[#This Row],[Forventede omkostninger]]-Budgetoplysninger[[#This Row],[Faktiske omkostninger]]","v":{"v":3,"d":"kr. 3"}},{"$f":"Budgetoplysninger[[#This Row],[Faktiske omkostninger]]","v":{"v":22,"d":"kr. 22"}}]
[null,"Vand og kloak","Bolig",{"v":25,"d":"kr. 25"},{"v":26,"d":"kr. 26"},{"$f":"Budgetoplysninger[[#This Row],[Forventede omkostninger]]-Budgetoplysninger[[#This Row],[Faktiske omkostninger]]","v":{"v":-1,"d":"kr. -1"}},{"$f":"Budgetoplysninger[[#This Row],[Faktiske omkostninger]]","v":{"v":26,"d":"kr. 26"}}]
[null,"Sundhedsforsikring","Forsikring",{"v":400,"d":"kr. 400"},{"v":400,"d":"kr. 400"},{"$f":"Budgetoplysninger[[#This Row],[Forventede omkostninger]]-Budgetoplysninger[[#This Row],[Faktiske omkostninger]]","v":{"v":0,"d":"kr. 0"}},{"$f":"Budgetoplysninger[[#This Row],[Faktiske omkostninger]]","v":{"v":400,"d":"kr. 400"}}]
[null,"Ejendomsforsikring","Forsikring",{"v":400,"d":"kr. 400"},{"v":400,"d":"kr. 400"},{"$f":"Budgetoplysninger[[#This Row],[Forventede omkostninger]]-Budgetoplysninger[[#This Row],[Faktiske omkostninger]]","v":{"v":0,"d":"kr. 0"}},{"$f":"Budgetoplysninger[[#This Row],[Faktiske omkostninger]]","v":{"v":400,"d":"kr. 400"}}]
[null,"Livsforsikring","Forsikring",{"v":100,"d":"kr. 100"},{"v":100,"d":"kr. 100"},{"$f":"Budgetoplysninger[[#This Row],[Forventede omkostninger]]-Budgetoplysninger[[#This Row],[Faktiske omkostninger]]","v":{"v":0,"d":"kr. 0"}},{"$f":"Budgetoplysninger[[#This Row],[Faktiske omkostninger]]","v":{"v":100,"d":"kr. 100"}}]
[null,"Kreditkort 1","Lån",{"v":200,"d":"kr. 200"},{"v":200,"d":"kr. 200"},{"$f":"Budgetoplysninger[[#This Row],[Forventede omkostninger]]-Budgetoplysninger[[#This Row],[Faktiske omkostninger]]","v":{"v":0,"d":"kr. 0"}},{"$f":"Budgetoplysninger[[#This Row],[Faktiske omkostninger]]","v":{"v":200,"d":"kr. 200"}}]
[null,"Kreditkort 2","Lån",null,null,{"$f":"Budgetoplysninger[[#This Row],[Forventede omkostninger]]-Budgetoplysninger[[#This Row],[Faktiske omkostninger]]","v":{"v":0,"d":"kr. 0"}},{"$f":"Budgetoplysninger[[#This Row],[Faktiske omkostninger]]","v":{"v":0,"d":"kr. 0"}}]
[null,"Kreditkort 3","Lån",null,null,{"$f":"Budgetoplysninger[[#This Row],[Forventede omkostninger]]-Budgetoplysninger[[#This Row],[Faktiske omkostninger]]","v":{"v":0,"d":"kr. 0"}},{"$f":"Budgetoplysninger[[#This Row],[Faktiske omkostninger]]","v":{"v":0,"d":"kr. 0"}}]
[null,"Privat","Lån",null,null,{"$f":"Budgetoplysninger[[#This Row],[Forventede omkostninger]]-Budgetoplysninger[[#This Row],[Faktiske omkostninger]]","v":{"v":0,"d":"kr. 0"}},{"$f":"Budgetoplysninger[[#This Row],[Faktiske omkostninger]]","v":{"v":0,"d":"kr. 0"}}]
[null,"Studielån","Lån",null,null,{"$f":"Budgetoplysninger[[#This Row],[Forventede omkostninger]]-Budgetoplysninger[[#This Row],[Faktiske omkostninger]]","v":{"v":0,"d":"kr. 0"}},{"$f":"Budgetoplysninger[[#This Row],[Faktiske omkostninger]]","v":{"v":0,"d":"kr. 0"}}]
[null,"Beklædning","Personlig pleje",{"v":150,"d":"kr. 150"},{"v":140,"d":"kr. 140"},{"$f":"Budgetoplysninger[[#This Row],[Forventede omkostninger]]-Budgetoplysninger[[#This Row],[Faktiske omkostninger]]","v":{"v":10,"d":"kr. 10"}},{"$f":"Budgetoplysninger[[#This Row],[Faktiske omkostninger]]","v":{"v":140,"d":"kr. 140"}}]
[null,"Tøjrens","Personlig pleje",null,null,{"$f":"Budgetoplysninger[[#This Row],[Forventede omkostninger]]-Budgetoplysninger[[#This Row],[Faktiske omkostninger]]","v":{"v":0,"d":"kr. 0"}},{"$f":"Budgetoplysninger[[#This Row],[Faktiske omkostninger]]","v":{"v":0,"d":"kr. 0"}}]
[null,"Hår/negle","Personlig pleje",null,null,{"$f":"Budgetoplysninger[[#This Row],[Forventede omkostninger]]-Budgetoplysninger[[#This Row],[Faktiske omkostninger]]","v":{"v":0,"d":"kr. 0"}},{"$f":"Budgetoplysninger[[#This Row],[Faktiske omkostninger]]","v":{"v":0,"d":"kr. 0"}}]
[null,"Fitnesscenter","Personlig pleje",null,null,{"$f":"Budgetoplysninger[[#This Row],[Forventede omkostninger]]-Budgetoplysninger[[#This Row],[Faktiske omkostninger]]","v":{"v":0,"d":"kr. 0"}},{"$f":"Budgetoplysninger[[#This Row],[Faktiske omkostninger]]","v":{"v":0,"d":"kr. 0"}}]
[null,"Medicin","Personlig pleje",null,null,{"$f":"Budgetoplysninger[[#This Row],[Forventede omkostninger]]-Budgetoplysninger[[#This Row],[Faktiske omkostninger]]","v":{"v":0,"d":"kr. 0"}},{"$f":"Budgetoplysninger[[#This Row],[Faktiske omkostninger]]","v":{"v":0,"d":"kr. 0"}}]
[null,"Mad","Kæledyr",{"v":150,"d":"kr. 150"},{"v":75,"d":"kr. 75"},{"$f":"Budgetoplysninger[[#This Row],[Forventede omkostninger]]-Budgetoplysninger[[#This Row],[Faktiske omkostninger]]","v":{"v":75,"d":"kr. 75"}},{"$f":"Budgetoplysninger[[#This Row],[Faktiske omkostninger]]","v":{"v":75,"d":"kr. 75"}}]
[null,"Pleje","Kæledyr",{"v":20,"d":"kr. 20"},{"v":25,"d":"kr. 25"},{"$f":"Budgetoplysninger[[#This Row],[Forventede omkostninger]]-Budgetoplysninger[[#This Row],[Faktiske omkostninger]]","v":{"v":-5,"d":"kr. -5"}},{"$f":"Budgetoplysninger[[#This Row],[Faktiske omkostninger]]","v":{"v":25,"d":"kr. 25"}}]
[null,"Medicin","Kæledyr",null,null,{"$f":"Budgetoplysninger[[#This Row],[Forventede omkostninger]]-Budgetoplysninger[[#This Row],[Faktiske omkostninger]]","v":{"v":0,"d":"kr. 0"}},{"$f":"Budgetoplysninger[[#This Row],[Faktiske omkostninger]]","v":{"v":0,"d":"kr. 0"}}]
[null,"Legetøj","Kæledyr",null,null,{"$f":"Budgetoplysninger[[#This Row],[Forventede omkostninger]]-Budgetoplysninger[[#This Row],[Faktiske omkostninger]]","v":{"v":0,"d":"kr. 0"}},{"$f":"Budgetoplysninger[[#This Row],[Faktiske omkostninger]]","v":{"v":0,"d":"kr. 0"}}]
[null,"Investeringskonto","Opsparinger eller investeringer",{"v":200,"d":"kr. 200"},{"v":200,"d":"kr. 200"},{"$f":"Budgetoplysninger[[#This Row],[Forventede omkostninger]]-Budgetoplysninger[[#This Row],[Faktiske omkostninger]]","v":{"v":0,"d":"kr. 0"}},{"$f":"Budgetoplysninger[[#This Row],[Faktiske omkostninger]]","v":{"v":200,"d":"kr. 200"}}]
[null,"Pensionskonto","Opsparinger eller investeringer",null,null,{"$f":"Budgetoplysninger[[#This Row],[Forventede omkostninger]]-Budgetoplysninger[[#This Row],[Faktiske omkostninger]]","v":{"v":0,"d":"kr. 0"}},{"$f":"Budgetoplysninger[[#This Row],[Faktiske omkostninger]]","v":{"v":0,"d":"kr. 0"}}]
[null,"Bundskat","Skat",{"v":300,"d":"kr. 300"},{"v":300,"d":"kr. 300"},{"$f":"Budgetoplysninger[[#This Row],[Forventede omkostninger]]-Budgetoplysninger[[#This Row],[Faktiske omkostninger]]","v":{"v":0,"d":"kr. 0"}},{"$f":"Budgetoplysninger[[#This Row],[Faktiske omkostninger]]","v":{"v":300,"d":"kr. 300"}}]
[null,"Kommuneskat","Skat",null,null,{"$f":"Budgetoplysninger[[#This Row],[Forventede omkostninger]]-Budgetoplysninger[[#This Row],[Faktiske omkostninger]]","v":{"v":0,"d":"kr. 0"}},{"$f":"Budgetoplysninger[[#This Row],[Faktiske omkostninger]]","v":{"v":0,"d":"kr. 0"}}]
[null,"Sundhedsbidrag","Skat",null,null,{"$f":"Budgetoplysninger[[#This Row],[Forventede omkostninger]]-Budgetoplysninger[[#This Row],[Faktiske omkostninger]]","v":{"v":0,"d":"kr. 0"}},{"$f":"Budgetoplysninger[[#This Row],[Faktiske omkostninger]]","v":{"v":0,"d":"kr. 0"}}]
[null,"Udgifter til bus/taxa","Transport",{"v":100,"d":"kr. 100"},{"v":150,"d":"kr. 150"},{"$f":"Budgetoplysninger[[#This Row],[Forventede omkostninger]]-Budgetoplysninger[[#This Row],[Faktiske omkostninger]]","v":{"v":-50,"d":"kr. -50"}},{"$f":"Budgetoplysninger[[#This Row],[Faktiske omkostninger]]","v":{"v":150,"d":"kr. 150"}}]
[null,"Brændstof","Transport",{"v":450,"d":"kr. 450"},{"v":400,"d":"kr. 400"},{"$f":"Budgetoplysninger[[#This Row],[Forventede omkostninger]]-Budgetoplysninger[[#This Row],[Faktiske omkostninger]]","v":{"v":50,"d":"kr. 50"}},{"$f":"Budgetoplysninger[[#This Row],[Faktiske omkostninger]]","v":{"v":400,"d":"kr. 400"}}]
[null,"Forsikring","Transport",{"v":300,"d":"kr. 300"},{"v":300,"d":"kr. 300"},{"$f":"Budgetoplysninger[[#This Row],[Forventede omkostninger]]-Budgetoplysninger[[#This Row],[Faktiske omkostninger]]","v":{"v":0,"d":"kr. 0"}},{"$f":"Budgetoplysninger[[#This Row],[Faktiske omkostninger]]","v":{"v":300,"d":"kr. 300"}}]
[null,"Vægtafgift ","Transport",{"v":25,"d":"kr. 25"},{"v":25,"d":"kr. 25"},{"$f":"Budgetoplysninger[[#This Row],[Forventede omkostninger]]-Budgetoplysninger[[#This Row],[Faktiske omkostninger]]","v":{"v":0,"d":"kr. 0"}},{"$f":"Budgetoplysninger[[#This Row],[Faktiske omkostninger]]","v":{"v":25,"d":"kr. 25"}}]
[null,"Vedligeholdelse","Transport",{"v":100,"d":"kr. 100"},{"v":50,"d":"kr. 50"},{"$f":"Budgetoplysninger[[#This Row],[Forventede omkostninger]]-Budgetoplysninger[[#This Row],[Faktiske omkostninger]]","v":{"v":50,"d":"kr. 50"}},{"$f":"Budgetoplysninger[[#This Row],[Faktiske omkostninger]]","v":{"v":50,"d":"kr. 50"}}]
[null,"Parkeringsgebyrer","Transport",null,null,{"$f":"Budgetoplysninger[[#This Row],[Forventede omkostninger]]-Budgetoplysninger[[#This Row],[Faktiske omkostninger]]","v":{"v":0,"d":"kr. 0"}},{"$f":"Budgetoplysninger[[#This Row],[Faktiske omkostninger]]","v":{"v":0,"d":"kr. 0"}}]
[null,"Afbetaling af køretøj","Transport",{"v":450,"d":"kr. 450"},{"v":450,"d":"kr. 450"},{"$f":"Budgetoplysninger[[#This Row],[Forventede omkostninger]]-Budgetoplysninger[[#This Row],[Faktiske omkostninger]]","v":{"v":0,"d":"kr. 0"}},{"$f":"Budgetoplysninger[[#This Row],[Faktiske omkostninger]]","v":{"v":450,"d":"kr. 450"}}]
[null,"Total",null,{"$f":"SUBTOTAL(109,Budgetoplysninger[Forventede omkostninger])","v":{"v":7915,"d":"kr. 7,915"}},{"$f":"SUBTOTAL(109,Budgetoplysninger[Faktiske omkostninger])","v":{"v":7860,"d":"kr. 7,860"}},{"$f":"SUBTOTAL(109,Budgetoplysninger[Forskel])","v":{"v":55,"d":"kr. 55"}}]

{"sheet":"Yderligere data","index":2,"n_rows":15,"n_cols":5,"rows_kept":15}
[null,"Pivottabel for diagrammet Budgetoversigt",null,null,"Opslagsliste til kategori af budgetoplysninger"]
[null,"Kategori","Omkostninger ",null,"Opslag af budgetkategori"]
[null,"Børn",140,null,"Bolig"]
[null,"Underholdning",358,null,"Børn"]
[null,"Mad",1320,null,"Forsikring"]
[null,"Gaver og velgørenhed",125,null,"Gaver og velgørenhed"]
[null,"Bolig",2702,null,"Kæledyr"]
[null,"Forsikring",900,null,"Lån"]
[null,"Lån",200,null,"Mad"]
[null,"Personlig pleje",140,null,"Opsparinger eller investeringer"]
[null,"Kæledyr",100,null,"Personlig pleje"]
[null,"Opsparinger eller investeringer",200,null,"Skat"]
[null,"Skat",300,null,"Transport"]
[null,"Transport",1375,null,"Underholdning"]
[null,"Konačni zbir",7860]